Cogmind - Beta 15 @@@ ROGUE MODE // 2025.07.25 @ 14:03:18 Player: P9H Result: Destroyed by Y-54 Guardian with Flak Gun Performance ------------- Evolutions (3) 1500 Regions Visited (5) 1000 Robots Destroyed (60) 300 Value Destroyed (1979) 1979 Prototype IDs (1) 20 Alien Tech Used (0) 0 Bonus (-80) -80 TOTAL SCORE: 4719 Bonus ------- Follower Combat Kills 107 Friendly Fire -187 Cogmind --------- Core Integrity 0/700 Matter 181/300 Energy 93/160 System Corruption 22% Temperature Cool (18) Movement Rolling (135) Ox3 Location -7/Storage Parts ------- > --- POWER (2) -------- Light Nuclear Core > --- PROPULSION (2) --- Wheel Compact Wheel > --- UTILITY (7) ------ Huge Storage Unit Signal Interpreter Improved Targeting Computer Matter Filter Microactuators Actuator Array > --- WEAPON (2) ------- Maul Spear > --- INVENTORY (25) --- Medium Treads Medium Treads Medium Treads Medium Treads Improved Heat Sink Improved Cooling System Weapon Cycler Improved Field Recycling Unit (0) Gatling Laser Advanced Assault Cannon Missile Launcher Katana Peak State ------------ > --- POWER ------------ Micro Nuclear Core Micro Nuclear Core > --- PROPULSION ------- Medium Treads Medium Treads > --- UTILITY ---------- Huge Storage Unit Signal Interpreter Targeting Computer Improved Targeting Computer Improved Targeting Computer Improved Melee Analysis Suite Advanced ECM Suite > --- WEAPON ----------- Autogun Advanced Assault Cannon > --- INVENTORY -------- Light Nuclear Core Medium Treads Medium Treads Medium Treads Medium Treads Improved Heat Sink Improved Heat Sink Improved Heat Sink Improved Cooling System Medium Matter Pod Matter Filter Weapon Cycler Microactuators Actuator Array Improved Field Recycling Unit V3-11A's Pendant Arc Projector Gatling Laser Missile Launcher Missile Launcher Missile Launcher Maul Katana Spear [Rating: 45] Favorites ----------- Power Ion Engine Engine Ion Engine Power Core Micro Nuclear Core Propulsion Wheel Treads Medium Treads Leg Aluminum Leg Wheel Wheel Utility Improved Targeting Computer Device Heat Sink Storage Huge Storage Unit Processor Improved Targeting Computer Protection Light Armor Plating Weapon Barrage Gun Energy Gun Salvaging Laser Ballistic Gun Barrage Gun Ballistic Cannon Advanced Assault Cannon Launcher Missile Launcher Impact Weapon Maul Slashing Weapon Katana Piercing Weapon Spear Build | -11 -10 -10 -8 -7 -7 ------- Run | Yrd Mat Sub Mat Fac Sto Slots Evolved 6 | . . . 4 2 . Power 1 | . . . 1 . . Propulsion . | . . . . . . Utility 5 | . . . 3 2 . Weapon . | . . . . . . Parts Attached 83 | 6 3 9 18 26 21 Power 16 | 1 . 3 2 4 6 Engine 12 | 1 . 3 2 4 2 Core 4 | . . . . . 4 Reactor . | . . . . . . Propulsion 17 | 2 1 2 2 4 6 Treads 2 | . . . . . 2 Leg 1 | . . . . 1 . Wheel 14 | 2 1 2 2 3 4 Hover . | . . . . . . Flight . | . . . . . . Utility 28 | 1 2 1 9 9 6 Device 11 | . . 1 3 2 5 Storage 5 | 1 1 . 2 . 1 Processor 6 | . 1 . . 5 . Hackware . | . . . . . . Protection 6 | . . . 4 2 . Artifact . | . . . . . . Weapon 22 | 2 . 3 5 9 3 Energy Gun 4 | 2 . 1 . 1 . Energy Cannon . | . . . . . . Ballistic Gun 11 | . . 2 3 6 . Ballistic Cannon 2 | . . . 2 . . Launcher 2 | . . . . 1 1 Special Weapon . | . . . . . . Impact Weapon 1 | . . . . . 1 Slashing Weapon 1 | . . . . 1 . Piercing Weapon 1 | . . . . . 1 Special Melee Weapon . | . . . . . . Unidentified Prototypes 1 | . . 1 . . . Parts Lost 54 | . . 8 3 28 15 Power 14 | . . 3 . 6 5 Propulsion 14 | . . 4 1 6 3 Utility 16 | . . . 2 9 5 Weapon 10 | . . 1 . 7 2 Highest Loss Streak 15 | . . 4 3 5 15 To Critical Strikes . | . . . . . . Average Backups 19 | 2 7 15 17 22 21 Power 3 | . 2 4 3 3 1 Propulsion 1 | . 1 . . . 3 Utility 7 | . 2 4 5 9 9 Weapon 7 | 1 1 4 7 9 7 Tool/Special . | . . . . . . Unused Backups 30 | . 2 2 9 4 13 Power 1 | . 1 . . . . Propulsion 4 | . . . . . 4 Utility 9 | . . 1 2 . 6 Weapon 15 | . 1 1 6 4 3 Tool/Special 1 | . . . 1 . . Average Slot Usage (%) 90 | . 94 95 83 87 90 Engine 11 | . 14 13 18 12 . Core 1 | . . . . . 13 Treads 1 | . . . . . 7 Wheel 12 | . 28 24 14 6 1 Device 8 | . . 11 9 8 8 Storage 9 | . 14 14 8 7 7 Processor 18 | . 8 2 . 28 35 Protection 4 | . . . 15 7 . Energy Gun 4 | . 28 11 . . . Ballistic Gun 9 | . . 15 15 7 5 Ballistic Cannon 2 | . . . 2 3 3 Slashing Weapon 1 | . . . . 2 2 Peak Build Rating 45 | 6 9 15 26 33 45 Average Rating 24 | 3 8 13 21 28 38 On Entrance 12 | . 6 9 14 23 24 Naked Turns . | . . . . . . Heaviest Build 110 | 11 46 51 109 110 104 Greatest Support 56 | 26 26 30 28 28 56 Greatest Overweight (x) 34 | 1 2 5 4 33 34 Average Overweight (x) 3 | . . 1 2 7 3 Largest Inventory Capacity 25 | 8 20 20 25 25 25 Average Capacity 22 | 7 11 20 21 25 25 Most Carried 25 | 7 13 20 25 25 25 Average Carried 20 | 2 7 18 19 22 21 Final Capacity 25 | 8 20 20 25 25 25 Final Carried 23 | 2 13 19 21 23 12 Class Distribution -------------------- 63% | Scavenger-Mutant 33% | Mutant Dominant Class ---------------- Mutant | -10/Materials Scavenger-Mutant | -10/Subcaves Scavenger-Mutant | -8/Materials Scavenger-Mutant | -7/Factory Scavenger-Mutant | -7/Storage Resources | -11 -10 -10 -8 -7 -7 ----------- Run | Yrd Mat Sub Mat Fac Sto Matter Collected 1817 | 167 123 200 232 830 265 Remotely 641 | . . . . 641 . Salvage Created 1854 | . 179 145 260 738 532 Parts 112 | . 21 9 20 38 24 Haulers Intercepted . | . . . . . . Recyclers Shooed 5 | . 1 . 2 . 2 Parts Field Recycled . | . . . . . . Retrieved Matter . | . . . . . . Parts Self-Destructed 5 | . . 5 . . . Prevented . | . . . . . . Kills | -11 -10 -10 -8 -7 -7 ------- Run | Yrd Mat Sub Mat Fac Sto Combat Hostiles Destroyed 46 | . 2 3 8 19 14 Melee 6 | . . . . 3 3 Guns 25 | . 2 3 6 13 1 Cannons 5 | . . . 2 3 . AOE 10 | . . . . . 10 Classes Destroyed 14 | . 4 2 1 3 4 Worker 6 | . 2 . . . 4 Builder 3 | . 3 . . . . Tunneler 1 | . . . . 1 . Recycler 2 | . . . . . 2 Operator 1 | . . . . 1 . Swarmer 12 | . 1 . 4 4 3 Grunt 15 | . 1 . . 7 7 Brawler 1 | . . . . . 1 Duelist 1 | . . . . . 1 Protector 1 | . . . . . 1 Sentry 8 | . . 1 3 3 1 Hunter 2 | . . . 1 1 . Programmer 4 | . . . . 4 . Subdweller 2 | . . 2 . . . Thug 1 | . . . . . 1 Best Kill Streak 16 | . 3 2 5 4 16 Combat Bots Only 13 | . 1 2 5 4 13 Max Kills in Single Turn 4 | . 1 1 1 2 4 Gunslinging 1 | . . . . 1 . Exploded 3 | . . . . . 3 Melee 1 | . . . . 1 1 Uniques/NPCs Destroyed . | . . . . . . Combat | -11 -10 -10 -8 -7 -7 -------- Run | Yrd Mat Sub Mat Fac Sto Hostile Shots Fired 808 | . 8 110 68 457 165 Missed 286 | . 5 46 18 160 57 Hits 522 | . 3 64 50 297 108 Melee 6 | . . . . . 6 Projectile 516 | . 3 64 50 297 102 Critical Strikes 5 | . . . 1 3 1 Damage Taken 5864 | . 32 724 686 3023 1399 Core 977 | . 10 210 55 410 292 Absorbed by Shields . | . . . . . . Core Remaining (%) 67 | 100 . 12 90 . . Volleys Fired 150 | . 14 27 36 61 12 Largest 2 | . 2 2 2 2 2 Hottest 90 | . 90 90 68 68 63 Shots Fired 252 | . 22 47 59 111 13 Gun 216 | . 22 47 44 100 3 Cannon 27 | . . . 15 11 1 Launcher 9 | . . . . . 9 Special . | . . . . . . Kinetic 188 | . . 27 59 98 4 Thermal 55 | . 22 20 . 13 . Explosive 9 | . . . . . 9 Electromagnetic . | . . . . . . Robot Hit Streak 17 | . 8 14 5 17 13 Robot Miss Streak 4 | . 4 3 3 3 . Penetration Max . | . . . . . . Secondary Targets 4 | . . . . 4 . Max Gunslinging Chain 1 | . . . . 1 . Shots Hit Robots 208 | . 14 31 33 102 28 Core Hits 128 | . 8 7 12 57 44 Critical Kills 1 | . . . . 1 . Critical Parts Destroyed 2 | . . . . 2 . Critical Strikes 12 | . 3 2 . 5 2 Burn 5 | . 3 2 . . . Destroy 3 | . . . . 3 . Blast 1 | . . . . 1 . Sever 2 | . . . . 1 1 Impale 1 | . . . . . 1 Melee Attacks 32 | . . . . 13 19 Impact 4 | . . . . . 4 Slashing 21 | . . . . 13 8 Piercing 7 | . . . . . 7 Sneak Attacks 6 | . . . . 1 5 Combat Hostiles . | . . . . . . Follow-up Attacks 2 | . . . . . 2 Damage Inflicted 6158 | . 185 452 617 2099 2805 Guns 2579 | . 185 452 446 1449 47 Cannons 479 | . . . 171 278 30 Explosions 2099 | . . . . . 2099 Melee 1001 | . . . . 372 629 Ramming . | . . . . . . Kinetic 2623 | . . 282 617 1647 77 Thermal 435 | . 185 170 . 80 . Explosive 2099 | . . . . . 2099 Electromagnetic . | . . . . . . Impact 141 | . . . . . 141 Slashing 715 | . . . . 372 343 Piercing 145 | . . . . . 145 Highest Corruption 22 | . . . . 5 22 Average Corruption 4 | . . . . 3 6 Corruption Purged . | . . . . . . Corruption Blocked . | . . . . . . Effects 54 | . . . . 32 22 Message Errors 14 | . . . . 8 6 Matter Fused 8 | . . . . 3 5 Heat Flow Errors 9 | . . . . 4 5 Energy Discharges 7 | . . . . 4 3 Parts Rejected 2 | . . . . 1 1 Parts Fused 1 | . . . . 1 . Data Loss (minor) 8 | . . . . 6 2 Data Loss (major) 2 | . . . . 2 . Misfires 1 | . . . . 1 . Alerts 2 | . . . . 2 . Overload Shots . | . . . . . . Overflow Damage 110 | . . . 8 20 82 Projectiles 8 | . . . 8 . . Explosions 24 | . . . . . 24 Melee 78 | . . . . 20 58 Knockbacks 5 | . . . 3 2 . Impact . | . . . . . . Kinetic 5 | . . . 3 2 . Secondary . | . . . . . . Self-Inflicted Damage 105 | . . . . . 105 Shots 3 | . . . . . 3 Rammed . | . . . . . . Targets Rammed . | . . . . . . Kicked . | . . . . . . Crushed . | . . . . . . Highest Temperature 300 | . 40 10 300 172 244 Average Temperature 57 | . 18 6 93 23 80 Received Heat Transfer 1392 | . 12 264 18 633 465 Effects 2 | . . . 2 . . Interference 2 | . . . 2 . . Siege Activations . | . . . . . . Martial Activations . | . . . . . . Shielding Activations . | . . . . . . Robots Disrupted . | . . . . . . Combat Hostiles . | . . . . . . Robots Corrupted . | . . . . . . Combat Hostiles . | . . . . . . Parts Fried . | . . . . . . Impact Corruptions . | . . . . . . Robots Melted . | . . . . . . Combat Hostiles . | . . . . . . Parts Melted 1 | . 1 . . . . Heat Transferred 1513 | . 693 595 . 225 . Parts Sabotaged . | . . . . . . Parts Stolen . | . . . . . . Parts Stripped . | . . . . . . Power Chain Reactions . | . . . . . . Alert | -11 -10 -10 -8 -7 -7 ------- Run | Yrd Mat Sub Mat Fac Sto Maximum Alert Level 1 | . . . . . 1 Low Security (%) 98 | 100 100 . 100 100 89 Level 1 1 | . . . . . 10 Level 2 . | . . . . . . Level 3 . | . . . . . . Level 4 . | . . . . . . Level 5 . | . . . . . . High Security . | . . . . . . Max Security . | . . . . . . Peak Influence 258 | . 30 . 84 104 258 Initial 16 | . . . 7 16 . Average 26 | . 6 . 24 25 38 Influence Increases 1504 | . 75 177 228 562 462 Destroy 0b10 Robot/C 920 | . 40 40 160 380 300 Destroy 0b10 Robot/NC 70 | . 25 . . 10 35 Destroy Leader 220 | . 10 . 50 110 50 Allied During Kill 18 | . . 2 . . 16 Disable Machine 15 | . . . 15 . . Destroy Structure 51 | . . . 3 2 46 Lose Combat Pursuer 210 | . . 135 . 60 15 Influence Decreases 1291 | . 75 162 207 598 249 Entered New Map 28 | . . . 8 20 . Time Decay 840 | . 75 80 169 437 79 Lost Part 361 | . . 40 30 141 150 Lost Ally 62 | . . 42 . . 20 Squads Dispatched 17 | . 2 . 1 8 6 Investigation 3 | . 2 . . 1 . Extermination 6 | . . . . 5 1 Reinforcement 4 | . . . 1 2 1 Assault 2 | . . . . . 2 Garrison 2 | . . . . . 2 Intercept . | . . . . . . Searches Triggered . | . . . . . . Construction Impeded . | . . . . . . Haulers Reinforced 1 | . . . . . 1 Active Scanning Responses . | . . . . . . Cargo Convoy Interrupts . | . . . . . . Stealth | -11 -10 -10 -8 -7 -7 --------- Run | Yrd Mat Sub Mat Fac Sto Distress Signals 1 | . . . . 1 . Communications Jammed . | . . . . . . Distress Signals . | . . . . . . Times Spotted 88 | . 13 16 13 26 20 Peak Tracking Total 10 | . 3 6 6 3 10 Tactical Retreats 11 | . . 5 . 3 3 Traps | -11 -10 -10 -8 -7 -7 ------- Run | Yrd Mat Sub Mat Fac Sto Traps Triggered 3 | . . . . 3 . Indirectly . | . . . . . . Trap Hack Attempts . | . . . . . . Triggered . | . . . . . . Disarmed . | . . . . . . Reprogrammed . | . . . . . . Reused . | . . . . . . Traps Extracted . | . . . . . . Installed . | . . . . . . Triggered . | . . . . . . Machines | -11 -10 -10 -8 -7 -7 ---------- Run | Yrd Mat Sub Mat Fac Sto Machines Disabled 3 | . . 2 1 . . Max in Single Turn 1 | . . 1 1 . . Garrison Access 1 | . . . 1 . . Machines Repaired . | . . . . . . Machines Dismantled . | . . . . . . Machines Sabotaged . | . . . . . . Overloaded Fab Kills . | . . . . . . Hacking | -11 -10 -10 -8 -7 -7 --------- Run | Yrd Mat Sub Mat Fac Sto Machines Accessed 3 | . 1 . 1 1 . Terminals 1 | . 1 . . . . Fabricators . | . . . . . . Repair Stations . | . . . . . . Recycling Units . | . . . . . . Scanalyzers . | . . . . . . Garrison Access 2 | . . . 1 1 . Total Hacks 6 | . 2 . 1 3 . Successful 3 | . 2 . 1 . . Failed 3 | . . . . 3 . Catastrophic 1 | . . . . 1 . Database Lockouts . | . . . . . . Manual . | . . . . . . Terminals 2 | . 2 . . . . Fabricators . | . . . . . . Repair Stations . | . . . . . . Recycling Units . | . . . . . . Scanalyzers . | . . . . . . Garrison Access 4 | . . . 1 3 . Terminal Hacks 2 | . 2 . . . . Alert Level 2 | . 2 . . . . Fabricator Hacks . | . . . . . . Repair Station Hacks . | . . . . . . Recycling Unit Hacks . | . . . . . . Scanalyzer . | . . . . . . Garrison Access Hacks 1 | . . . 1 . . Seal Access 1 | . . . 1 . . Unauthorized Hacks . | . . . . . . Terminals . | . . . . . . Fabricators . | . . . . . . Repair Stations . | . . . . . . Recycling Units . | . . . . . . Scanalyzers . | . . . . . . Garrison Access . | . . . . . . Data Cores Recovered . | . . . . . . Used . | . . . . . . Hacking Detections 2 | . 1 . . 1 . Full Trace Events 1 | . . . . 1 . Feedback Events . | . . . . . . Feedback Blocked . | . . . . . . Robot Schematics Acquired . | . . . . . . Robots Built . | . . . . . . Authchips . | . . . . . . Time . | . . . . . . Total Robot Build Rating . | . . . . . . Part Schematics Acquired . | . . . . . . Parts Built . | . . . . . . Authchips . | . . . . . . Time . | . . . . . . Total Part Build Rating . | . . . . . . Parts Repaired . | . . . . . . Time . | . . . . . . Parts Recycled . | . . . . . . Recycled Matter . | . . . . . . Retrieved Matter . | . . . . . . Retrieved Components . | . . . . . . Parts Scanalyzed . | . . . . . . Part Schematics Acquired . | . . . . . . Parts Damaged . | . . . . . . Bothacking | -11 -10 -10 -8 -7 -7 ------------ Run | Yrd Mat Sub Mat Fac Sto Used RIF Installer . | . . . . . . Robots Hacked . | . . . . . . Non-combat . | . . . . . . Combat . | . . . . . . Robot Hacks Applied . | . . . . . . Relay Couplers Released . | . . . . . . Fabnet Peak Effective % . | . . . . . . Robots Rewired . | . . . . . . Allies Hacked . | . . . . . . Hacks Repelled . | . . . . . . Allies | -11 -10 -10 -8 -7 -7 -------- Run | Yrd Mat Sub Mat Fac Sto Total Allies 6 | . . 4 . . 2 Largest Group 4 | . . 4 . . 2 Highest-Rated Group 76 | . . 76 . . 62 Highest-Rated Ally 31 | . . 19 . . 31 Total Orders . | . . . . . . Ally Attacks 26 | . . 10 . . 16 Total Damage 424 | . . 150 . . 274 Kills 4 | . . 2 . . 2 Allies Corrupted . | . . . . . . Allies Melted . | . . . . . . Intel | -11 -10 -10 -8 -7 -7 ------- Run | Yrd Mat Sub Mat Fac Sto Active Infowar (turns) 1622 | . 198 275 48 518 583 Optics 473 | . 198 275 . . . Structural 566 | . . . 48 518 . ECM 583 | . . . . . 583 Robot Analysis Total . | . . . . . . Derelict Logs Recovered 3 | . . 3 . . . Drone Launches . | . . . . . . Drone Recoveries . | . . . . . . Exploration | -11 -10 -10 -8 -7 -7 ------------- Run | Yrd Mat Sub Mat Fac Sto Turns Passed 5334 | 43 295 1357 587 2331 721 Spaces Moved 2416 | 32 227 1052 307 629 169 Core 76 | 13 . . . 51 12 Treads 117 | . . . . . 117 Legs 26 | . . . . 26 . Wheels 2197 | 19 227 1052 307 552 40 Hover . | . . . . . . Flight . | . . . . . . Fastest Speed 50 | 50 80 105 120 140 135 Average Speed 180 | 90 90 117 135 304 322 Slowest Speed 1750 | 100 110 155 160 1700 1750 Overloaded Moves . | . . . . . . Propulsion Burnouts . | . . . . . . Robots Hopped . | . . . . . . Potential Cave-ins . | . . . . . . Cave-ins Triggered . | . . . . . . Exploration Rate (%) 31 | 4 49 58 30 15 30 Regions Visited 5 Branch Regions 2 Pre-discovered Areas 1 | . . 1 . . . Known Exits Taken 1 | . . . . 1 . Unknown Exits Taken 4 | 1 1 1 1 . . Scrap Searched 2 | . . 2 . . . Spaces Dug . | . . . . . . Terrain Destroyed 58 | . . . 3 1 54 Melee . | . . . . . . Projectile 4 | . . . 3 1 . AOE 54 | . . . . . 54 Terrain Rammed . | . . . . . . Walls Destroyed . | . . . . . . Machines Disabled . | . . . . . . Actions | -11 -10 -10 -8 -7 -7 --------- Run | Yrd Mat Sub Mat Fac Sto Total 3144 | 45 295 1127 432 940 305 Wait 261 | . 35 17 4 146 59 Move 2411 | 31 226 1051 306 628 169 Hop . | . . . . . . Pick Up 127 | 8 13 15 42 35 14 Fast Attach 3 | . 1 . 2 . . Attach 72 | 6 . 8 11 28 19 Detach 6 | . . 1 3 2 . Swap 28 | . 2 4 8 5 9 Drop 40 | . 4 3 20 7 6 Fire 150 | . 14 27 36 61 12 Melee 30 | . . . . 13 17 Ram . | . . . . . . Kick . | . . . . . . Crush . | . . . . . . Escape Stasis 15 | . . . . 15 . Rewire 1 | . . 1 . . . Trap . | . . . . . . Miscellaneous . | . . . . . . Route ------- -11/Scrapyard -10/Materials (discovered 4 exits: [*Mat x2] / [*Min] / [*Sub]) -10/Subcaves (discovered 2 exits: *Mat / [*Rec]) -8/Materials -7/Factory -7/Storage History --------- Turn | Location | Event 11 | -11/Scrapyard | Discovered new exit (range 15) 44 | -11/Scrapyard | Entered Materials 45 | -10/Materials | Met a group of wandering Federalists 70 | -10/Materials | Discovered new exit (range 16) 236 | -10/Materials | Discovered new exit (range 18) 303 | -10/Materials | Build established: Mutant 328 | -10/Materials | Discovered new exit (range 18) 328 | -10/Materials | Discovered new exit (range 10) 339 | -10/Materials | Entered Subcaves 340 | -10/Subcaves | Continued accompanying wandering Federalists (1) 342 | -10/Subcaves | Learned location of Storage (-7) 397 | -10/Subcaves | Shifting Twisted Machinery released Barrage Gun 405 | -10/Subcaves | Shifting Twisted Machinery released Scrap Shield 477 | -10/Subcaves | Core integrity fell below 50% 519 | -10/Subcaves | Lost 4 parts (2p2n) 551 | -10/Subcaves | Learned Materials emergency access door positions 602 | -10/Subcaves | Visited triangular shrine 613 | -10/Subcaves | Found Prototype Device 614 | -10/Subcaves | Identified V3-11A's Pendant 619 | -10/Subcaves | Befriended Subdweller 768 | -10/Subcaves | Build established: Scavenger-Mutant 769 | -10/Subcaves | Discovered new exit (range 10) 774 | -10/Subcaves | Shifting Twisted Machinery released Spk. Treads 776 | -10/Subcaves | Shifting Twisted Machinery released Lgt. Humpback 969 | -10/Subcaves | Befriended Subdweller 974 | -10/Subcaves | Befriended Subdweller 1014 | -10/Subcaves | Befriended Subdweller 1073 | -10/Subcaves | Shifting Twisted Machinery released Piercing Trap 1080 | -10/Subcaves | Shifting Twisted Machinery released Sub. Laser 1244 | -10/Subcaves | A swath of the cavern ceiling suddenly collapsed 1355 | -10/Subcaves | Discovered new exit (range 14) 1382 | -10/Subcaves | Core integrity fell below 20% 1396 | -10/Subcaves | Lost 3 allies 1664 | -10/Subcaves | Build established: Mutant 1696 | -10/Subcaves | Entered Materials 1696 | -8/Materials | Evolved 4 slots: Power x1, Utility x3 2183 | -8/Materials | Lost 3 parts (1n2u) 2257 | -8/Materials | Discovered new exit (range 15) 2283 | -8/Materials | Entered Factory 2283 | -7/Factory | Evolved 2 slots: Utility x2 2413 | -7/Factory | Build established: Scavenger-Mutant 2840 | -7/Factory | Lost 5 parts (1p1n3u) 2907 | -7/Factory | Lost 3 parts (1u2w) 3150 | -7/Factory | Lost 5 parts (1n3u1w) 3513 | -7/Factory | Lost 3 parts (1p1n1u) 3799 | -7/Factory | Discovered new exit (range 15) 3911 | -7/Factory | Lost 5 parts (1p1n3w) 3990 | -7/Factory | Core integrity fell below 50% 4267 | -7/Factory | Build established: Mutant 4598 | -7/Factory | Identified exit to Storage 4614 | -7/Factory | Entered Storage 4927 | -7/Storage | Build established: Scavenger-Mutant 5146 | -7/Storage | Met a pair of Derelict thieves 5188 | -7/Storage | Garrison activated, responded to threat 5241 | -7/Storage | Core integrity fell below 20% 5244 | -7/Storage | System corruption reached 10% 5280 | -7/Storage | Destroyed 13 combat bots 5294 | -7/Storage | Lost 15 parts (5p3n5u2w) 5335 | -7/Storage | Destroyed by Y-54 Guardian with Flak Gun Last Messages --------------- 05270_ U-05 Engineer builds a Wall. 05270_ Acquired Lgt. Nuclear Core. 05271_ U-05 Engineer lays Concrete. 05271_ K-01 Serf collects debris. 05272_ U-05 Engineer builds a Wall. 05272_ U-05 Engineer lays Concrete. 05274_ U-05 Engineer builds a Wall. 05287_ X,TQUCOF=ZIKZBBQJ R1NVJ5C=N1%XP 05293_ K-01 Serf cleans the Storage Shell. 05303_ Sneak attack on A-02 Transporter. 05308_ System corrupted: Energy discharge (-12). 05315_ Spear follow-up attack on Y-54 Guardian. 05315_ Y-54 Guardian suffers critical hit (Impale). 05315_ Y-54 Guardian destroyed. 05319_ Acquired 26 matter. 05321_ ALERT: Potential suspicious activity detected, Programmers report to Storage Zone 3W. 05324_ System corrupted: Matter fused (-5). Map ----- +----------------------------------------------------+ | ????????????????"" #????# # #????? | | ????????????????" #????# " + #????? | | ????????????????" #????#=== #T## #????? | | ??????????# """"" #????#=== #### #????? | | ??????????# #????######??# #????? | | ??????#########+#+###???????????# #????? | | ??????# ############# #????? | | ??????# ! + # #????? | | ??????# * ### """""" # #????? | | ??????# ####### #?# "????" # #????? | | ??????# #?????# #?# "????" # #????? | | ??????# #?????# #?# """""" + #????? | | ??????# #?????# #?# # #????? | | ??????# #?????# #?# # #????? | | ??????# #?????# #?# # #????? | | ??????# #?????# #?########### #????? | | ??????# #?????# ########???? ????? | | ??????# #?????# ???? #???? | | ??????# #?????# ????? " #???? | | R?????# #?????# #### ?????? #???? | | "?????# #?????# #??# #?????? #???? | | ###### #######+#### #############???? | | # # ## !## # # """"" #??? | | ## ## ## """ # # ""T"" #???? | | ]## """"?" # # Y a #???? | | # "????" + @ #???? | | % ## "????" # # """"" #???? | | %!=% + "????" # # """"" #???? | | = [ ## "???? # # """"" ????? | | ####![## ## ? # ##########??????? | | ?# = # #############+##???????????????? | | ?# %!=T ###??????????????????????????????? | | ?## "###????????????????????????????????? | | ?#!*% #????????????????????????????????? | | ?#=*%= !#????????????????????????????????? | | ?#!!= ! #????????????????????????????????? | | ?#!!! !#????????????????????????????????? | | ?########????????????????????????????????? | | ?????????????????????????????????????????? | | ?????????????????????????????????????????? | | ?????????????????????????????????????????? | | ?????????????????????????????????????????? | | ?????????????????????????????????????????? | | ?????????????????????????????????????????? | | ?????????????????????????????????????????? | | ?????????????????????????????????????????? | | ?????????????????????????????????????????? | | ?????????????????????????????????????????? | | ?????????????????????????????????????????? | | ?????????????????????????????????????????? | +----------------------------------------------------+ Best States ------------- Heat Dissipation 55 Energy Generation 25 Energy Capacity 400 Matter Stores 300 Matter Capacity 300 Sight Range 18 Terrain Scan Density 10 ECM Strength 2 Armor Coverage 950 Weapon Cycling 15 Melee Speed Boost 20 Evasion (%) 44 Targeting Accuracy 17 Melee Accuracy 6 Recoil Reduction 2 Matter Filtering 30 Item Schematics ----------------- None Robot Schematics ------------------ None Fabricated ------------ Nothing Repaired ---------- Nothing Alien Tech Used ----------------- None Achievements -------------- None Challenges ------------ None Game ------ Seed TeslaAlphaMace Manual? 0 Play Time 00:51:21 Cumulative 44.6 hours Start 2025.07.25 @ 12:23:40 End 2025.07.25 @ 14:03:18 Sessions 1 Manual Loads 0 Difficulty Rogue Special Mode None Game No. 89 Rogue 89 Adventurer 0 Explorer 0 Win Type - Total 0 Types 0/0/0/0/0/0/0/0/0/0 Lore% 8 Gallery% 29 Achievement% 25 Wizard Run 0 Options --------- Layout 1 ASCII 0 Keyboard 0 Movement Mouse Keybinds 0 Fullscreen 2 Font 32/SmallcapsGlow Map View 50x35 Zoom Use 0% Tactical HUD 1 Map Filters NONE Filters NONE Steam 1 RUN: ce2adeef-ea2c-491e-91f3-04f2876d31b8